bitfinex-derivatives/quotes_BTCF0:USTF0_20240923
["timestamp","ask_amount","ask_price","bid_price","bid_amount"]
[1727074750825,0.082,63696.0,63695.0,0.004]
[1727074751141,0.081,63696.0,63695.0,0.003]
[1727074751441,0.082,63696.0,63695.0,0.003]
[1727074751741,0.081,63696.0,63695.0,0.003]
[1727074752037,0.082,63696.0,63695.0,0.006]
[1727074753342,0.160493,63696.0,63695.0,0.006]
[1727074753534,0.160493,63696.0,63695.0,0.05303163]
[1727074753841,0.160493,63696.0,63695.0,0.006]
[1727074756441,0.160493,63696.0,63695.0,0.0687075]
[1727074760843,0.160493,63696.0,63695.0,0.006]
[1727074762544,0.160493,63696.0,63695.0,0.05304595]
[1727074764341,0.160493,63696.0,63695.0,0.006]
[1727074765946,0.080493,63696.0,63695.0,0.006]
[1727074766143,0.160493,63696.0,63695.0,0.006]
[1727074773953,0.160493,63696.0,63695.0,0.05307657]
[1727074775046,0.160493,63696.0,63695.0,0.006]
[1727074775554,0.160493,63696.0,63695.0,0.0530779]
[1727074777451,0.160493,63696.0,63695.0,0.006]
[1727074778154,0.160493,63696.0,63695.0,0.05307667]
[1727074779247,0.00088,63698.0,63697.0,0.078492]
[1727074779446,0.439281,63706.0,63697.0,0.10644162]
[1727074779447,0.0008,63706.0,63697.0,0.10644162]
[1727074779654,0.08,63703.0,63700.0,0.0784413]
[1727074779855,0.08,63703.0,63702.0,0.0784413]
[1727074780160,0.08,63703.0,63702.0,0.18466567]
[1727074780351,0.3608,63714.0,63702.0,0.1062363]
[1727074780548,0.08,63705.0,63704.0,0.07839184]
[1727074780752,0.08,63705.0,63704.0,0.1847203]
[1727074781453,0.08,63705.0,63704.0,0.26306132]
[1727074781958,0.08,63705.0,63704.0,0.27006132]
[1727074782253,0.08,63705.0,63704.0,0.27306132]
[1727074782254,0.081,63705.0,63704.0,0.27306132]
[1727074782556,0.001,63705.0,63704.0,0.088484]
[1727074785062,0.001,63705.0,63704.0,0.449284]
[1727074785450,0.001,63705.0,63704.0,0.51187954]
[1727074786155,0.001,63705.0,63704.0,0.449284]
[1727074792168,0.001,63705.0,63704.0,0.920204]
[1727074793659,0.001,63705.0,63704.0,0.449284]
[1727074794463,0.13,63707.0,63704.0,0.449284]
[1727074794464,0.16921213,63707.0,63706.0,0.078481]
[1727074795662,0.16921213,63707.0,63706.0,0.082481]
[1727074796564,0.09073213,63707.0,63706.0,0.085481]
[1727074796864,0.09073213,63707.0,63706.0,0.446281]
[1727074800268,0.13,63708.0,63706.0,0.446281]
[1727074800557,0.07848,63707.0,63706.0,0.3678]
[1727074800956,0.13,63708.0,63706.0,0.44628]
[1727074801162,0.13,63708.0,63707.0,0.04689084]
[1727074801363,0.208479,63708.0,63707.0,0.04689084]
[1727074801561,0.07848,63707.0,63706.0,0.3678]
[1727074801769,0.12498,63707.0,63706.0,0.41469731]
[1727074802063,0.12498,63707.0,63706.0,0.3678]
[1727074802255,0.12498,63707.0,63706.0,0.3638]
[1727074802449,0.12498,63707.0,63704.0,0.06250775]
[1727074802450,0.078482,63705.0,63704.0,0.0469125]
[1727074802647,0.439282,63705.0,63704.0,0.0469125]
[1727074802854,0.439282,63705.0,63701.0,0.0469125]
[1727074803055,0.13,63702.0,63698.0,0.06250775]
[1727074804358,0.131,63702.0,63699.0,0.06250775]
[1727074805259,0.209486,63702.0,63699.0,0.06250775]
[1727074805664,0.209486,63702.0,63699.0,0.07450775]
[1727074806362,0.078487,63701.0,63699.0,0.012]
[1727074806564,0.126187,63701.0,63699.0,0.07464925]
[1727074807456,0.126187,63701.0,63700.0,0.06266795]
[1727074807659,0.256187,63701.0,63699.0,0.012]
[1727074807859,0.256187,63701.0,63700.0,0.06266588]
[1727074808260,0.256187,63701.0,63699.0,0.012]
[1727074809664,0.256187,63701.0,63699.0,0.022]
[1727074809966,0.078489,63700.0,63699.0,0.06903802]
[1727074810267,0.078489,63700.0,63699.0,0.012]
[1727074810465,0.1777,63701.0,63696.0,0.04703459]
[1727074810670,0.208492,63697.0,63696.0,0.04703459]
[1727074811062,0.208492,63697.0,63693.0,0.42350964]
[1727074811261,0.094,63696.0,63693.0,0.42350964]
[1727074811861,0.13,63694.0,63693.0,0.42350964]
[1727074812060,0.0487,63701.0,63693.0,0.42350964]
[1727074812061,0.001,63701.0,63693.0,0.42347882]
[1727074812267,0.001,63701.0,63698.0,0.04700514]
[1727074813072,0.208487,63702.0,63698.0,0.04700514]
[1727074813570,0.208487,63702.0,63699.0,0.04700514]
[1727074813971,0.001,63701.0,63699.0,0.04700514]
[1727074814974,0.079488,63701.0,63699.0,0.04700514]
[1727074815172,0.079488,63701.0,63699.0,0.012]
[1727074815871,0.079488,63701.0,63699.0,0.022]
[1727074815872,0.078488,63701.0,63699.0,0.022]
[1727074816062,0.078488,63701.0,63699.0,0.06900514]
[1727074816463,0.078488,63701.0,63700.0,0.06267353]
[1727074816661,0.079488,63701.0,63700.0,0.06267353]
[1727074817568,0.078488,63701.0,63700.0,0.06267353]
[1727074817769,0.079488,63701.0,63700.0,0.07167353]
[1727074817974,0.079488,63701.0,63700.0,0.08267353]
[1727074818673,0.079488,63701.0,63700.0,0.02]
[1727074819068,0.079488,63701.0,63700.0,0.08265184]
[1727074819273,0.079488,63701.0,63700.0,0.02]
[1727074819475,0.079488,63701.0,63700.0,0.0826523]
[1727074822079,0.001,63701.0,63700.0,0.0826523]
[1727074822262,0.001,63701.0,63700.0,0.02]
[1727074824372,0.081,63701.0,63700.0,0.02]
[1727074827375,0.159487,63701.0,63700.0,0.02]
[1727074829581,0.54574141,63701.0,63700.0,0.02]
[1727074829977,1.49574141,63701.0,63700.0,0.02]
[1727074830576,1.41574141,63701.0,63700.0,0.02]
[1727074830776,1.470287,63701.0,63700.0,0.02]
[1727074831176,1.109487,63701.0,63700.0,0.02]
[1727074831383,0.159487,63701.0,63700.0,0.02]
[1727074839892,0.159487,63701.0,63700.0,0.06709323]
[1727074840091,0.159487,63701.0,63700.0,0.02]
[1727074840496,0.001,63701.0,63700.0,0.02]
[1727074840795,0.0008,63705.0,63700.0,0.1]
[1727074840991,0.440154,63712.0,63700.0,0.17834102]
[1727074841198,0.440154,63712.0,63701.0,0.15682802]
[1727074841199,0.08,63704.0,63701.0,0.15682802]
[1727074841393,0.08,63704.0,63702.0,0.078486]
[1727074842794,0.08,63704.0,63702.0,0.087486]
[1727074842995,0.081,63704.0,63702.0,0.094486]
[1727074844891,0.081,63704.0,63702.0,0.016]
[1727074845101,0.159484,63704.0,63702.0,0.016]
[1727074845395,0.078485,63703.0,63702.0,0.016]
[1727074845589,0.1963379,63703.0,63702.0,0.016]
[1727074845786,0.170885,63703.0,63702.0,0.016]
[1727074847182,0.0924,63703.0,63702.0,0.07872789]
[1727074847595,0.0466,63703.0,63702.0,0.07873743]
[1727074847796,0.0466,63703.0,63702.0,0.07173743]
[1727074847991,0.0476,63703.0,63702.0,0.06973743]
[1727074848291,0.1776,63703.0,63702.0,0.016]
[1727074848492,0.1776,63703.0,63702.0,0.07873811]
[1727074848891,0.256085,63703.0,63702.0,0.07873811]
[1727074850390,0.256085,63703.0,63702.0,0.016]
[1727074850887,0.256085,63703.0,63696.0,0.07834102]
[1727074850888,1.16385582,63703.0,63696.0,0.04705981]
[1727074851196,0.078493,63696.0,63694.0,0.04705981]
[1727074851387,0.256695,63695.0,63694.0,0.04705981]
[1727074852203,0.078496,63694.0,63693.0,0.04705981]
[1727074852393,0.208496,63694.0,63693.0,0.04705981]
[1727074852698,0.078497,63693.0,63687.0,0.07834102]
[1727074852901,0.13,63688.0,63687.0,0.07834102]
[1727074853100,0.078497,63693.0,63687.0,0.18378161]
[1727074853302,0.13,63688.0,63687.0,0.07834102]
[1727074853601,0.13,63688.0,63687.0,0.10541146]
[1727074853794,0.13,63688.0,63687.0,0.18380401]
[1727074854192,0.13,63688.0,63687.0,0.07839255]
[1727074854599,0.13,63688.0,63685.0,0.39238854]
[1727074855001,0.131,63688.0,63685.0,0.39238854]
[1727074855194,0.131,63688.0,63687.0,0.04702608]
[1727074855389,0.131,63688.0,63685.0,0.39238854]
[1727074855590,0.132,63688.0,63687.0,0.05502615]
[1727074855792,0.132,63688.0,63682.0,0.126811]
[1727074855793,0.132,63688.0,63682.0,0.04702615]
[1727074856104,0.078511,63682.0,63679.0,0.04702615]
[1727074856296,0.13,63680.0,63679.0,0.04702615]
[1727074856496,0.4908,63680.0,63679.0,0.04702615]
[1727074856810,0.4908,63680.0,63678.0,0.04702615]
[1727074856811,0.208514,63680.0,63678.0,0.04702615]
[1727074857104,0.13,63679.0,63676.0,0.04702615]
[1727074857497,0.13,63679.0,63677.0,0.3608]
[1727074858097,0.13,63679.0,63678.0,0.005]
[1727074858398,0.131,63679.0,63678.0,0.005]
[1727074858601,0.131,63679.0,63671.0,0.0497]
[1727074858602,0.4918,63679.0,63664.0,0.00888]
[1727074858803,0.4908,63671.0,63664.0,0.0078]
[1727074859105,0.13,63665.0,63661.0,0.0491]
[1727074860802,0.208532,63665.0,63661.0,0.0491]
[1727074860999,0.208532,63665.0,63657.0,0.3608]
[1727074861201,0.13,63661.0,63657.0,0.3608]
[1727074862603,0.131,63661.0,63657.0,0.3608]
[1727074863802,0.132,63661.0,63657.0,0.3628]
[1727074868810,0.002,63661.0,63660.0,0.13]
[1727074869006,0.1337,63676.0,63660.0,0.13]
[1727074869309,0.13,63668.0,63667.0,0.3608]
[1727074871006,0.131,63668.0,63667.0,0.3628]
[1727074871415,0.132,63668.0,63667.0,0.3648]
[1727074871913,0.210528,63668.0,63667.0,0.3648]
[1727074873707,0.132,63668.0,63667.0,0.3648]
[1727074875311,0.132,63668.0,63667.0,0.004]
[1727074876401,0.210528,63668.0,63667.0,0.004]
[1727074882009,0.002,63668.0,63667.0,0.004]
[1727074885415,0.132,63668.0,63667.0,0.004]
[1727074889419,0.210528,63668.0,63667.0,0.004]
[1727074911422,0.002,63668.0,63667.0,0.004]
[1727074911623,0.002,63668.0,63667.0,0.0514]
[1727074911821,0.002,63668.0,63667.0,0.12979255]
[1727074912229,0.002,63668.0,63667.0,0.23431759]
[1727074912938,0.132,63668.0,63667.0,0.12979255]
[1727074913334,0.132,63668.0,63667.0,0.2343959]
[1727074913541,0.132,63668.0,63667.0,0.12979255]
[1727074913738,0.132,63668.0,63667.0,0.0514]
[1727074914427,0.132,63668.0,63667.0,0.004]
[1727074914631,0.210528,63668.0,63667.0,0.004]
[1727074918730,0.132,63668.0,63667.0,0.004]
[1727074918932,0.132,63668.0,63667.0,0.08239255]
[1727074919534,0.002,63668.0,63667.0,0.52172155]
[1727074919740,0.002,63668.0,63667.0,0.54787827]
[1727074920640,0.002,63668.0,63667.0,0.46934927]
[1727074921640,0.002,63668.0,63667.0,0.54787827]
[1727074921943,0.4908,63674.0,63667.0,0.54787827]
[1727074922144,0.4908,63674.0,63671.0,0.0785144]
[1727074922336,0.078523,63673.0,63671.0,0.0785144]
[1727074922639,0.078523,63673.0,63670.0,0.0785144]
[1727074923042,0.13,63671.0,63670.0,0.0785144]
[1727074923242,0.13,63671.0,63670.0,0.18294717]
[1727074923442,0.13,63671.0,63670.0,0.0785144]
[1727074924149,0.078525,63670.0,63669.0,0.0785144]
[1727074924341,0.078525,63670.0,63668.0,0.0785144]
[1727074924742,0.078525,63670.0,63667.0,0.3638]
[1727074924743,0.078525,63670.0,63667.0,0.4423144]
[1727074925043,0.078525,63670.0,63667.0,0.4393144]
[1727074925438,0.078525,63670.0,63667.0,0.0785144]
[1727074926242,0.132,63671.0,63666.0,0.0785144]
[1727074926448,0.132,63671.0,63661.0,0.45496923]
[1727074926449,0.13,63667.0,63665.0,0.0785144]
[1727074926741,0.13,63666.0,63664.0,0.0785144]
[1727074926942,0.078534,63663.0,63662.0,0.06280341]
[1727074927155,0.208534,63663.0,63662.0,0.06280341]
[1727074927342,0.60124,63663.0,63655.0,0.0785144]
[1727074927641,0.60124,63663.0,63650.0,0.0785144]
[1727074927642,0.3608,63656.0,63650.0,0.0785144]
[1727074927832,0.078549,63651.0,63648.0,0.0785144]
[1727074928032,0.13,63649.0,63648.0,0.0785144]
[1727074928233,0.13,63649.0,63648.0,0.18317168]
[1727074928441,0.13,63649.0,63647.0,0.0785144]
[1727074928636,0.208553,63648.0,63647.0,0.0785144]
[1727074928844,0.208553,63648.0,63644.0,0.0785144]
[1727074929044,0.13,63645.0,63642.0,0.3608]
[1727074929446,0.13,63645.0,63642.0,0.4393144]
[1727074929746,0.13,63645.0,63642.0,0.3608]
[1727074930340,0.13,63643.0,63642.0,0.3608]
[1727074930746,0.127,63643.0,63642.0,0.3608]
[1727074931148,0.127,63643.0,63642.0,0.3638]
[1727074931349,0.127,63643.0,63642.0,0.3668]
[1727074931941,0.129,63643.0,63642.0,0.3668]
[1727074935248,0.129,63643.0,63642.0,0.006]
[1727074940551,0.207559,63643.0,63642.0,0.006]
[1727074946760,0.129,63643.0,63642.0,0.006]
[1727074947750,0.002,63643.0,63642.0,0.006]
[1727074954166,0.080559,63643.0,63642.0,0.006]
[1727074954766,0.002,63643.0,63642.0,0.006]
[1727074955451,0.132,63643.0,63642.0,0.18931386]
[1727074955856,0.210559,63643.0,63642.0,0.18931386]
[1727074956552,0.210559,63643.0,63642.0,0.20496869]
[1727074957464,0.571359,63643.0,63642.0,0.11079946]
[1727074957651,0.571359,63643.0,63642.0,0.08458624]
[1727074957963,0.210559,63643.0,63642.0,0.006]
[1727074959068,0.132,63643.0,63642.0,0.11101543]
[1727074960250,0.210559,63643.0,63642.0,0.11101543]
[1727074968461,0.210559,63643.0,63642.0,0.18959102]
[1727074968658,0.210559,63643.0,63642.0,0.11101543]
[1727074969061,0.210559,63643.0,63642.0,0.18964645]
[1727074969958,0.210559,63643.0,63642.0,0.11107184]
[1727074971081,0.210559,63643.0,63642.0,0.18964708]
[1727074971272,0.210559,63643.0,63642.0,0.006]
[1727074972270,0.160559,63643.0,63642.0,0.006]
[1727074977469,0.002,63643.0,63642.0,0.006]
[1727074977681,0.082,63643.0,63642.0,0.18946931]
[1727074977876,0.082,63643.0,63642.0,0.08457524]
[1727074978865,0.082,63643.0,63642.0,0.11090676]
[1727074980278,0.002,63643.0,63642.0,0.26946676]
[1727074980479,0.078551,63650.0,63645.0,0.078555]
[1727074980774,0.47145018,63658.0,63642.0,0.36436927]
[1727074980775,0.078546,63654.0,63649.0,0.4408]
[1727074980975,0.39396,63658.0,63653.0,0.07854274]
[1727074981180,0.158545,63654.0,63653.0,0.07854274]
[1727074981380,0.078546,63653.0,63652.0,0.07854274]
[1727074981584,0.158546,63653.0,63652.0,0.18304521]
[1727074981771,0.158546,63653.0,63650.0,0.07854274]
[1727074982077,0.08,63651.0,63650.0,0.07854274]
[1727074982281,0.13,63651.0,63650.0,0.18307762]
[1727074982481,0.13,63651.0,63650.0,0.07854274]
[1727074982699,0.001,63654.0,63650.0,0.31303107]
[1727074982982,0.07853,63666.0,63657.0,0.078541]
[1727074983279,0.13,63665.0,63658.0,0.59237596]
[1727074983475,0.13,63665.0,63658.0,0.48788763]
[1727074983672,0.13,63665.0,63664.0,0.3608]
[1727074985283,0.13,63665.0,63664.0,0.40779874]
[1727074985991,0.001,63665.0,63664.0,0.40779874]
[1727074986280,0.001,63665.0,63664.0,0.439333]
[1727074986482,0.001,63665.0,63660.0,0.07848763]
[1727074986689,0.13,63662.0,63658.0,0.48788763]
[1727074986986,0.13,63662.0,63658.0,0.4094]
[1727074987479,0.13,63662.0,63659.0,0.06261728]
[1727074987889,0.131,63662.0,63659.0,0.06261728]
[1727074988382,0.131,63662.0,63658.0,0.4104]
[1727074988383,0.131,63662.0,63661.0,0.04695139]
[1727074988584,0.131,63662.0,63660.0,0.04895139]
[1727074988785,0.131,63662.0,63660.0,0.002]
[1727074989379,0.131,63662.0,63659.0,0.003]
[1727074989380,0.132,63662.0,63659.0,0.003]
[1727074990689,0.131,63662.0,63661.0,0.001]
[1727074991380,0.132,63662.0,63659.0,0.003]
[1727074991882,0.131,63662.0,63661.0,0.001]
[1727074992088,0.13,63662.0,63661.0,0.001]
[1727074992390,0.13,63662.0,63660.0,0.002]
[1727074992580,0.131,63662.0,63660.0,0.002]
[1727074993095,0.131,63662.0,63661.0,0.002]
[1727074993680,0.209535,63662.0,63661.0,0.002]
[1727074993888,0.301135,63662.0,63661.0,0.002]
[1727074994587,0.300135,63662.0,63661.0,0.003]
[1727074995280,0.300135,63662.0,63661.0,0.001]
[1727074995689,0.300135,63662.0,63660.0,0.002]
[1727074995690,0.078537,63661.0,63660.0,0.002]
[1727074996081,0.078538,63660.0,63652.0,0.0453]
[1727074996279,0.13,63654.0,63652.0,0.0453]
[1727074996492,0.13,63654.0,63651.0,0.00235649]
[1727074997980,0.131,63654.0,63651.0,0.00335649]
[1727074998394,0.078547,63653.0,63651.0,0.00335649]
[1727074999192,0.078547,63653.0,63651.0,0.00535649]
[1727074999790,0.132,63654.0,63651.0,0.00535649]
[1727074999987,0.001,63653.0,63651.0,0.00535649]
[1727075000178,0.001,63653.0,63651.0,0.00435649]
[1727075000380,0.002,63653.0,63651.0,0.00535649]
[1727075000987,0.001,63653.0,63651.0,0.00535649]
[1727075001587,0.4926,63654.0,63651.0,0.00335649]
[1727075001783,0.4928,63654.0,63651.0,0.00535649]
[1727075002220,0.001,63653.0,63652.0,0.078548]
[1727075002486,0.001,63653.0,63652.0,0.12549939]
[1727075002693,0.001,63653.0,63652.0,0.078548]
[1727075002888,0.002,63653.0,63652.0,0.078548]
[1727075003782,0.001,63653.0,63652.0,0.078548]
[1727075004288,0.001,63653.0,63652.0,0.14116528]
[1727075004493,0.002,63653.0,63652.0,0.14216528]
[1727075004686,0.002,63653.0,63652.0,0.14416528]
[1727075004892,0.002,63653.0,63652.0,0.081548]
[1727075006598,0.002,63653.0,63652.0,0.26358003]
[1727075007598,0.002,63653.0,63652.0,0.1850924]
[1727075008097,0.002,63653.0,63652.0,0.26346448]
[1727075008689,0.002,63653.0,63652.0,0.1850924]
[1727075009591,0.002,63653.0,63652.0,0.5458924]
[1727075012585,0.002,63653.0,63652.0,0.3638]
[1727075012787,0.002,63653.0,63652.0,0.06574965]
[1727075012999,0.3628,63653.0,63652.0,0.003]
[1727075013501,0.002,63653.0,63652.0,0.003]
[1727075013699,0.002,63653.0,63652.0,0.06574965]
[1727075014404,0.002,63653.0,63652.0,0.003]
[1727075017002,0.078532,63666.0,63652.0,1.40225296]
[1727075017301,0.078532,63666.0,63661.0,0.06275482]
[1727075018102,0.3618,63663.0,63661.0,0.06275482]
[1727075018305,0.3628,63663.0,63662.0,0.06275482]
[1727075019603,0.002,63663.0,63662.0,0.14128982]
[1727075019806,0.002,63663.0,63662.0,0.26043241]
[1727075020001,0.003,63663.0,63662.0,0.18198888]
[1727075020210,0.07841018,63677.0,63670.0,0.078525]
[1727075020393,0.0475,63681.0,63674.0,0.04705438]
[1727075020594,0.078515,63679.0,63675.0,0.06273917]
[1727075020789,0.0475,63681.0,63676.0,0.06273917]
[1727075020790,0.208516,63678.0,63676.0,0.06273917]
[1727075020989,0.078518,63677.0,63675.0,0.06273917]
[1727075021194,0.078518,63677.0,63671.0,0.20474796]
[1727075021195,0.13,63676.0,63673.0,0.06273917]
[1727075022300,0.13,63676.0,63672.0,0.06273917]
[1727075023299,0.13,63676.0,63675.0,0.04699501]
[1727075023695,0.078519,63675.0,63673.0,0.04699501]
[1727075023898,0.078519,63675.0,63672.0,0.001]
[1727075023899,0.13,63674.0,63672.0,0.001]
[1727075024496,0.13,63674.0,63670.0,0.40779501]
[1727075024811,0.13,63674.0,63670.0,0.04699501]
[1727075024995,0.139,63674.0,63672.0,0.001]
[1727075025500,0.148,63674.0,63672.0,0.001]
[1727075025700,0.226521,63674.0,63672.0,0.001]
[1727075025899,0.078522,63673.0,63672.0,0.001]
[1727075026104,0.549682,63673.0,63672.0,0.001]
[1727075026302,1.149682,63673.0,63672.0,0.001]
[1727075026606,0.078526,63670.0,63664.0,0.04699501]
[1727075026797,0.13,63667.0,63664.0,0.04699501]
[1727075027804,0.13,63667.0,63663.0,0.04699501]
[1727075028003,0.131,63667.0,63663.0,0.04699501]
[1727075028201,0.131,63667.0,63664.0,0.04699501]
[1727075028710,0.131,63667.0,63663.0,0.04699501]
[1727075028711,0.209529,63667.0,63663.0,0.04699501]
[1727075028910,0.13,63664.0,63663.0,0.04699501]
[1727075029107,0.13,63664.0,63662.0,0.04699501]
[1727075029308,0.13,63664.0,63663.0,0.04699501]
[1727075029908,0.13,63664.0,63663.0,0.04799501]
[1727075030094,0.13,63664.0,63663.0,0.001]
[1727075030299,0.4908,63664.0,63659.0,0.04699501]
[1727075030507,0.13,63660.0,63655.0,0.04699501]
[1727075030707,0.13,63656.0,63654.0,0.04699501]
[1727075030912,0.1752,63655.0,63652.0,0.04699501]
[1727075031099,0.1752,63655.0,63653.0,0.04699501]
[1727075031305,0.13,63654.0,63653.0,0.04699501]
[1727075031822,0.13,63654.0,63649.0,0.00235647]
[1727075031823,0.13,63654.0,63651.0,0.04699501]
[1727075032006,0.13,63652.0,63649.0,0.04935148]
[1727075033315,0.131,63652.0,63649.0,0.05335148]
[1727075033504,0.131,63652.0,63650.0,0.04699501]
[1727075034205,0.131,63652.0,63649.0,0.05335148]
[1727075034616,0.131,63652.0,63650.0,0.04699501]
[1727075034933,0.132,63652.0,63650.0,0.04999501]
[1727075035909,0.132,63652.0,63650.0,0.05399501]
[1727075036216,0.078549,63651.0,63650.0,0.007]
[1727075037002,0.078549,63651.0,63650.0,0.004]
[1727075037410,0.078549,63651.0,63649.0,0.003]
[1727075037718,0.079549,63651.0,63650.0,0.004]
[1727075038515,0.080549,63651.0,63650.0,0.007]
[1727075039416,0.079549,63651.0,63650.0,0.003]
[1727075039611,0.080549,63651.0,63650.0,0.003]
[1727075040210,0.079549,63651.0,63650.0,0.003]
[1727075040407,0.080549,63651.0,63650.0,0.007]
[1727075050322,0.160549,63651.0,63650.0,0.007]
[1727075052623,0.002,63651.0,63650.0,0.007]
[1727075052823,0.082,63651.0,63650.0,0.007]
[1727075056433,0.082,63651.0,63650.0,0.05399138]
[1727075057328,0.082,63651.0,63650.0,0.007]
[1727075058440,0.07841018,63658.0,63654.0,0.078545]
[1727075058629,0.3608,63660.0,63655.0,0.047]
[1727075058630,0.43921018,63660.0,63655.0,0.047]
[1727075058828,0.078537,63661.0,63657.0,0.3608]
[1727075058829,0.15694718,63661.0,63657.0,0.3608]
[1727075059129,0.078538,63660.0,63657.0,0.3608]
[1727075059736,0.07841018,63663.0,63659.0,0.08]
[1727075060029,0.471533,63664.0,63659.0,0.08]
[1727075060030,0.471533,63664.0,63660.0,0.04699138]
[1727075060232,0.551533,63664.0,63660.0,0.04699138]
[1727075060437,0.078534,63663.0,63660.0,0.04699138]
[1727075061128,0.078534,63663.0,63659.0,0.12553038]
[1727075062128,0.078534,63663.0,63659.0,0.078539]
[1727075063054,0.081534,63663.0,63659.0,0.078539]
[1727075063260,0.085534,63663.0,63659.0,0.078539]
[1727075063746,0.006,63663.0,63659.0,0.04699138]
[1727075063953,0.006,63663.0,63661.0,0.04699138]
[1727075064251,0.005,63663.0,63660.0,0.04699138]
[1727075064446,0.002,63663.0,63662.0,0.14127417]
[1727075064746,0.57017,63667.0,63662.0,0.14127417]
[1727075064747,0.57017,63667.0,63662.0,0.078535]
[1727075064954,0.57017,63667.0,63665.0,0.04702079]
[1727075064955,0.07853,63666.0,63665.0,0.04702079]
[1727075065250,0.07853,63666.0,63665.0,0.0470088]
[1727075065840,0.078532,63665.0,63664.0,0.0470088]
[1727075066446,0.3616,63667.0,63666.0,0.07853]
[1727075066752,0.3608,63667.0,63666.0,0.07853]
[1727075067145,0.3608,63667.0,63666.0,0.12693]
[1727075067742,0.3688,63667.0,63666.0,0.12693]
[1727075070254,0.3758,63667.0,63666.0,0.17488317]
[1727075070943,0.3758,63667.0,63666.0,0.12793]
[1727075071140,0.3758,63667.0,63666.0,0.1748777]
[1727075072347,0.3758,63667.0,63666.0,0.12793]
[1727075073250,0.015,63667.0,63666.0,0.12793]
[1727075073453,0.223529,63667.0,63666.0,0.001]
[1727075078251,0.269729,63667.0,63666.0,0.001]
[1727075080346,0.219729,63667.0,63666.0,0.001]
[1727075082562,0.580529,63667.0,63666.0,0.001]
[1727075082959,0.219729,63667.0,63666.0,0.001]
[1727075085651,0.095,63667.0,63666.0,0.001]
[1727075085955,0.095,63667.0,63666.0,0.0479477]
[1727075086165,0.095,63667.0,63666.0,0.001]
[1727075088162,0.095,63667.0,63666.0,0.06369438]
[1727075088862,0.173529,63667.0,63666.0,0.001]
[1727075090860,0.173529,63667.0,63666.0,0.06369438]
[1727075091063,0.173529,63667.0,63666.0,0.001]
[1727075091263,0.173529,63667.0,63666.0,0.06369438]
[1727075092961,0.173529,63667.0,63666.0,0.06380862]
[1727075093161,0.173529,63667.0,63666.0,0.001]
[1727075094474,0.25190559,63667.0,63666.0,0.001]
[1727075094773,0.173529,63667.0,63666.0,0.001]
[1727075095162,0.25190757,63667.0,63666.0,0.001]
[1727075095471,0.173529,63667.0,63666.0,0.001]
[1727075095861,0.19899448,63667.0,63666.0,0.001]
[1727075096070,0.17337927,63667.0,63666.0,0.001]
[1727075096567,0.252058,63667.0,63666.0,0.001]
[1727075096774,0.37157352,63667.0,63666.0,0.001]
[1727075097070,0.19899532,63667.0,63666.0,0.001]
[1727075097271,0.173529,63667.0,63666.0,0.001]
[1727075097566,0.11899658,63667.0,63666.0,0.001]
[1727075097768,0.29303916,63667.0,63666.0,0.001]
[1727075097969,0.19899658,63667.0,63666.0,0.001]
[1727075099475,0.17338076,63667.0,63666.0,0.04810859]
[1727075100272,0.17338076,63667.0,63666.0,0.001]
[1727075100481,0.17338076,63667.0,63666.0,0.04811339]
[1727075100662,0.12046575,63667.0,63666.0,0.001]
[1727075100862,0.19899475,63667.0,63666.0,0.001]
[1727075102360,0.173529,63667.0,63666.0,0.001]
[1727075102574,0.25191459,63667.0,63666.0,0.001]
[1727075102874,0.25191459,63667.0,63666.0,0.04811339]
[1727075103072,0.173529,63667.0,63666.0,0.04811339]
[1727075103259,0.25191459,63667.0,63666.0,0.04811339]
[1727075103892,0.25191459,63667.0,63666.0,0.001]
[1727075103893,0.173529,63667.0,63666.0,0.001]
[1727075104759,0.173529,63667.0,63666.0,0.06381146]
[1727075106171,0.173529,63667.0,63666.0,0.001]
[1727075107873,0.015,63667.0,63666.0,0.42461146]
[1727075108170,0.08,63680.0,63666.0,0.46521405]
[1727075108363,0.078515,63679.0,63678.0,0.04709398]
[1727075108565,0.078515,63679.0,63676.0,0.06279198]
[1727075108874,0.08,63677.0,63676.0,0.06279198]
[1727075109075,0.08,63677.0,63675.0,0.42359198]
[1727075109272,0.08,63677.0,63675.0,0.06279198]
[1727075109473,0.08,63677.0,63668.0,0.09418797]
[1727075109474,0.25258056,63677.0,63668.0,0.04707612]
[1727075109785,0.08,63672.0,63667.0,0.12560512]
[1727075110276,0.08,63672.0,63667.0,0.04707612]
[1727075110568,0.08,63672.0,63666.0,0.3628]
[1727075110569,0.08,63672.0,63669.0,0.078526]
[1727075110869,0.088,63672.0,63669.0,0.078526]
[1727075111487,0.095,63672.0,63669.0,0.078526]
[1727075111669,0.095,63672.0,63669.0,0.079526]
[1727075112674,0.095,63672.0,63669.0,0.04807612]
[1727075112976,0.095,63672.0,63669.0,0.001]
[1727075113177,0.098,63672.0,63669.0,0.002]
[1727075115782,0.098,63672.0,63669.0,0.04907612]
[1727075115982,0.098,63672.0,63669.0,0.12760312]
[1727075116283,0.098,63672.0,63669.0,0.080527]
[1727075116765,0.098,63672.0,63671.0,0.078524]
[1727075117374,0.098,63672.0,63669.0,0.002]